bitfinex-derivatives/quotes_BTCF0:USTF0_20240905
["timestamp","ask_amount","ask_price","bid_price","bid_amount"]
[1725501609383,0.3705582,58079.0,58078.0,0.09193134]
[1725501611792,0.3705582,58079.0,58078.0,0.20193134]
[1725501612285,0.011,58079.0,58078.0,0.20193134]
[1725501613691,0.011,58079.0,58078.0,0.26219134]
[1725501613888,0.011,58079.0,58078.0,0.43829134]
[1725501615186,0.0002582,58084.0,58083.0,0.060255]
[1725501615387,0.0126,58098.0,58097.0,0.060241]
[1725501615596,0.3608,58104.0,58101.0,0.060236]
[1725501615597,0.0579,58102.0,58101.0,0.060236]
[1725501615786,0.0579,58102.0,58101.0,0.170236]
[1725501616795,0.0719,58102.0,58101.0,0.170236]
[1725501617791,0.0719,58102.0,58101.0,0.171236]
[1725501617792,0.0809,58102.0,58101.0,0.171236]
[1725501617986,0.0809,58102.0,58101.0,0.331236]
[1725501618488,0.023,58102.0,58101.0,0.331236]
[1725501620097,0.023,58102.0,58101.0,0.36262634]
[1725501620478,0.00016942,58107.0,58101.0,1.41871034]
[1725501620683,0.0046,58120.0,58115.0,0.060222]
[1725501620891,0.3608,58123.0,58115.0,0.330222]
[1725501620892,0.12,58119.0,58115.0,0.330222]
[1725501621091,0.39,58119.0,58115.0,0.060222]
[1725501622280,0.3728,58116.0,58115.0,0.060222]
[1725501623087,0.3728,58116.0,58115.0,0.061222]
[1725501624391,0.6428,58116.0,58115.0,0.061222]
[1725501625794,0.6428,58116.0,58115.0,0.001]
[1725501626002,1.949221,58116.0,58115.0,0.001]
[1725501626192,1.819221,58116.0,58115.0,0.001]
[1725501626503,1.949221,58116.0,58115.0,0.001]
[1725501627492,1.97954229,58116.0,58115.0,0.001]
[1725501631395,0.060226,58111.0,58110.0,0.0002582]
[1725501631701,0.691026,58111.0,58110.0,0.0002582]
[1725501632506,0.696026,58111.0,58110.0,0.0002582]
[1725501632699,1.87204,58111.0,58105.0,0.004]
[1725501632899,1.87204,58111.0,58100.0,0.004]
[1725501632900,0.060236,58101.0,58100.0,0.004]
[1725501633123,0.060236,58101.0,58093.0,0.060244]
[1725501633124,0.27,58099.0,58093.0,0.060244]
[1725501633307,0.27,58094.0,58093.0,0.060244]
[1725501634399,0.27,58094.0,58093.0,0.074244]
[1725501635194,0.421042,58096.0,58093.0,0.074244]
[1725501635395,0.3608,58096.0,58095.0,0.060243]
[1725501635997,0.0585,58098.0,58096.0,0.060241]
[1725501636903,0.0585,58098.0,58095.0,0.013]
[1725501636904,0.0002582,58099.0,58098.0,0.06024]
[1725501637703,0.0002582,58099.0,58098.0,0.5766]
[1725501638901,0.0032582,58099.0,58098.0,0.5766]
[1725501639305,0.0002582,58099.0,58098.0,0.5766]
[1725501639499,0.0002582,58099.0,58098.0,0.5776]
[1725501639904,0.0002582,58099.0,58098.0,0.5766]
[1725501640104,0.0002582,58099.0,58098.0,0.06024]
[1725501640105,0.0032582,58099.0,58098.0,0.06024]
[1725501643311,0.0032582,58099.0,58098.0,0.09056158]
[1725501660629,0.0032582,58099.0,58098.0,0.36056158]
[1725501660827,0.0032582,58099.0,58098.0,0.09056158]
[1725501661926,0.0032582,58099.0,58098.0,0.36056158]
[1725501662229,0.0032582,58099.0,58098.0,0.42080158]
[1725501663622,0.00096,58103.0,58102.0,0.12047]
[1725501663824,0.4155,58110.0,58109.0,0.060228]
[1725501663825,0.36584001,58110.0,58109.0,0.060228]
[1725501664031,0.3608,58110.0,58109.0,0.330228]
[1725501665025,0.3698,58110.0,58109.0,0.331228]
[1725501665425,0.009,58110.0,58109.0,0.331228]
[1725501666732,0.004,58117.0,58116.0,0.060221]
[1725501666935,0.63176,58118.0,58116.0,0.060221]
[1725501667232,0.6308,58118.0,58116.0,0.060221]
[1725501668135,0.6428,58118.0,58116.0,0.061221]
[1725501668628,0.282,58118.0,58116.0,0.062221]
[1725501668833,0.6428,58118.0,58116.0,0.062221]
[1725501670841,0.6428,58118.0,58117.0,0.06022]
[1725501672131,0.6428,58118.0,58117.0,0.06122]
[1725501672738,0.703019,58118.0,58117.0,0.06122]
[1725501672936,0.691019,58118.0,58117.0,0.06122]
[1725501673133,0.704019,58118.0,58117.0,0.06222]
[1725501674331,1.900219,58118.0,58117.0,0.002]
[1725501675334,2.00647365,58118.0,58117.0,0.00160002]
[1725501675736,1.960438,58118.0,58117.0,0.00160002]
[1725501676338,0.060227,58110.0,58109.0,0.004]
[1725501676547,0.060227,58110.0,58102.0,0.3608]
[1725501676548,0.6308,58110.0,58103.0,0.060234]
[1725501676734,0.6308,58105.0,58103.0,0.060234]
[1725501677631,0.6308,58105.0,58104.0,0.0624912]
[1725501678334,0.3608,58105.0,58104.0,0.0654912]
[1725501680441,0.3618,58105.0,58104.0,0.0634912]
[1725501680645,0.3708,58105.0,58104.0,0.0624912]
[1725501681145,0.3708,58105.0,58104.0,0.1721912]
[1725501684638,0.3708,58105.0,58104.0,0.2324242]
[1725501684846,0.3708,58105.0,58104.0,1.3487442]
[1725501685535,0.3708,58105.0,58104.0,0.7487442]
[1725501687043,0.3708,58105.0,58104.0,1.3487442]
[1725501687348,0.01,58105.0,58104.0,1.3487442]
[1725501691440,0.3608,58110.0,58109.0,0.120456]
[1725501691750,0.3608,58110.0,58109.0,0.390456]
[1725501693649,0.3608,58110.0,58109.0,0.391456]
[1725501694245,0.0633,58117.0,58116.0,0.060221]
[1725501694440,0.0593,58117.0,58116.0,0.060221]
[1725501694947,0.3293,58117.0,58116.0,0.060221]
[1725501696653,0.3993,58117.0,58116.0,0.060221]
[1725501696950,0.4073,58117.0,58116.0,0.061221]
[1725501697349,0.3373,58117.0,58116.0,0.09284383]
[1725501699549,0.6981,58117.0,58116.0,0.09284383]
[1725501700243,0.3373,58117.0,58116.0,0.09284383]
[1725501700443,0.6981,58117.0,58116.0,0.09284383]
[1725501703447,0.4281,58117.0,58116.0,0.09284383]
[1725501706750,0.534347,58117.0,58116.0,0.09284383]
[1725501707253,0.4281,58117.0,58116.0,0.09284383]
[1725501707656,0.534347,58117.0,58116.0,0.09284383]
[1725501708750,0.4281,58117.0,58116.0,0.09284383]
[1725501710950,0.0673,58117.0,58116.0,0.09284383]
[1725501712649,0.1773,58117.0,58116.0,0.09284383]
[1725501713954,0.1693,58117.0,58116.0,0.09184383]
[1725501714258,0.1753,58117.0,58116.0,0.09184383]
[1725501714647,0.1693,58117.0,58116.0,0.09184383]
[1725501714850,0.1773,58117.0,58116.0,0.09284383]
[1725501718357,0.0673,58117.0,58116.0,0.20284383]
[1725501722959,0.008,58117.0,58116.0,0.20284383]
[1725501725261,0.3688,58117.0,58116.0,0.20284383]
[1725501727672,0.3688,58117.0,58116.0,0.09284383]
[1725501728171,0.3688,58117.0,58116.0,0.20284383]
[1725501731074,0.3688,58117.0,58116.0,0.09284383]
[1725501737261,0.42902,58117.0,58116.0,0.03262283]
[1725501739074,0.42902,58117.0,58116.0,0.001]
[1725501740079,0.060227,58110.0,58109.0,0.004]
[1725501740282,0.060229,58109.0,58103.0,0.004]
[1725501740468,0.060229,58109.0,58099.0,0.4708]
[1725501740469,0.11,58105.0,58100.0,0.004]
[1725501740776,0.11,58105.0,58104.0,0.0604902]
[1725501741474,0.06023,58108.0,58104.0,0.0604902]
[1725501741475,0.17023,58108.0,58105.0,0.060232]
[1725501743671,0.17023,58108.0,58105.0,0.064232]
[1725501744181,0.17023,58108.0,58105.0,0.068232]
[1725501746071,0.17023,58108.0,58106.0,0.060231]
[1725501746880,0.060231,58106.0,58105.0,0.008]
[1725501747189,0.060232,58105.0,58104.0,0.0002582]
[1725501747369,0.518332,58105.0,58104.0,0.0002582]
[1725501749790,0.518332,58105.0,58104.0,0.0052582]
[1725501751088,0.518332,58105.0,58104.0,0.0102582]
[1725501756083,0.879132,58105.0,58104.0,0.0102582]
[1725501756691,0.879132,58105.0,58087.0,0.38945]
[1725501756692,0.95793671,58105.0,58096.0,0.060241]
[1725501756883,0.4708,58097.0,58096.0,0.060241]
[1725501757882,0.4708,58097.0,58096.0,0.088241]
[1725501758486,0.4718,58097.0,58096.0,0.074241]
[1725501758685,0.4718,58097.0,58096.0,0.028]
[1725501758686,0.532041,58097.0,58096.0,0.028]
[1725501759002,0.060246,58092.0,58091.0,0.0002582]
[1725501759298,0.551046,58092.0,58091.0,0.0002582]
[1725501759491,0.060252,58086.0,58079.0,0.060258]
[1725501759684,0.11,58080.0,58079.0,0.060258]
[1725501761085,0.111,58080.0,58079.0,0.060258]
[1725501765702,0.001,58080.0,58079.0,0.170258]
[1725501767597,0.001,58080.0,58079.0,0.531058]
[1725501767800,0.001,58080.0,58079.0,1.707837]
[1725501768500,0.0002582,58085.0,58079.0,1.707837]
[1725501768693,0.0002582,58085.0,58084.0,0.170254]
[1725501769396,0.0002582,58085.0,58084.0,0.310854]
[1725501770492,0.0002582,58085.0,58084.0,1.848388]
[1725501770793,0.0042582,58085.0,58084.0,1.848388]
[1725501771389,0.0012582,58085.0,58084.0,1.848388]
[1725501772505,0.0002582,58085.0,58084.0,1.849388]
[1725501773003,0.0002582,58085.0,58084.0,1.850388]
[1725501773893,0.0002582,58085.0,58084.0,1.88144989]
[1725501774599,0.0002582,58085.0,58084.0,1.52064989]
[1725501774795,0.0002582,58085.0,58084.0,1.88144989]
[1725501778092,0.004,58092.0,58084.0,1.82119589]
[1725501778300,0.3608,58094.0,58093.0,0.060245]
[1725501779099,0.11,58099.0,58098.0,0.06024]
[1725501780505,0.124,58099.0,58098.0,0.06124]
[1725501781300,0.138,58099.0,58098.0,0.06124]
[1725501782011,0.138,58099.0,58098.0,0.001]
[1725501782196,0.208,58099.0,58098.0,0.001]
[1725501783806,0.268238,58099.0,58098.0,0.001]
[1725501784206,0.989838,58099.0,58098.0,0.001]
[1725501784809,0.809838,58099.0,58098.0,0.06124]
[1725501785004,0.919838,58099.0,58098.0,0.06124]
[1725501786209,0.8596,58099.0,58098.0,0.06124]
[1725501786403,0.7496,58099.0,58098.0,0.06124]
[1725501789101,0.028,58099.0,58098.0,0.06124]
[1725501789908,0.028,58099.0,58098.0,0.09221154]
[1725501789909,0.138,58099.0,58098.0,0.09221154]
[1725501790314,0.028,58099.0,58098.0,0.09221154]
[1725501797224,0.0743,58099.0,58098.0,0.09221154]
[1725501797424,0.1207,58099.0,58098.0,0.09221154]
[1725501806544,0.028,58099.0,58098.0,0.09221154]
[1725501816540,0.028,58099.0,58098.0,0.20221154]
[1725501817944,0.028,58099.0,58098.0,0.62325154]
[1725501818941,0.028,58099.0,58098.0,0.45301154]
[1725501820340,0.018,58099.0,58098.0,0.45201154]
[1725501820540,0.008,58099.0,58098.0,0.45201154]
[1725501821158,0.0467,58102.0,58101.0,0.060236]
[1725501822157,0.0547,58102.0,58101.0,0.060236]
[1725501823473,0.0617,58102.0,58101.0,0.061236]
[1725501829485,0.015,58102.0,58101.0,0.061236]
[1725501829776,0.015,58102.0,58101.0,0.155336]
[1725501830569,0.015,58102.0,58101.0,0.109836]
[1725501830776,0.015,58102.0,58101.0,0.061236]
[1725501833274,0.008,58102.0,58101.0,0.060236]
[1725501833471,0.009,58102.0,58101.0,0.060236]
[1725501833975,0.002,58102.0,58101.0,0.060236]
[1725501834169,0.006,58102.0,58101.0,0.120472]
[1725501834576,0.005,58102.0,58101.0,0.120472]
[1725501834776,0.011,58102.0,58101.0,0.120472]
[1725501835277,0.008,58102.0,58101.0,0.120472]
[1725501835771,0.003,58102.0,58101.0,0.120472]
[1725501835970,0.006,58102.0,58101.0,0.120472]
[1725501836584,0.003,58102.0,58101.0,0.120472]
[1725501836977,0.0002582,58104.0,58103.0,0.060234]
[1725501837281,0.0002582,58104.0,58103.0,0.170234]
[1725501838882,0.0022582,58104.0,58103.0,0.170234]
[1725501839880,0.1122582,58104.0,58103.0,0.060234]
[1725501840184,0.2070582,58104.0,58103.0,0.060234]
[1725501844682,0.2070582,58104.0,58098.0,0.03097154]
[1725501844683,0.060238,58099.0,58098.0,0.03097154]
[1725501844893,0.060238,58099.0,58095.0,0.060243]
[1725501844894,0.06024,58098.0,58095.0,0.060243]
[1725501845186,0.11,58096.0,58095.0,0.060243]
[1725501845784,0.106,58096.0,58095.0,0.060243]
[1725501846689,0.107,58096.0,58095.0,0.067243]
[1725501846995,0.103,58096.0,58095.0,0.067243]
[1725501847492,0.104,58096.0,58095.0,0.071243]
[1725501848084,0.105,58096.0,58095.0,0.067243]
[1725501848286,0.165242,58096.0,58095.0,0.007]
[1725501848485,0.681642,58096.0,58095.0,0.007]
[1725501848688,0.060243,58095.0,58093.0,0.0002582]
[1725501848882,0.421044,58094.0,58093.0,0.0002582]
[1725501849188,0.468544,58094.0,58093.0,0.0002582]
[1725501849879,0.468544,58094.0,58093.0,0.03174545]
[1725501850083,0.4083,58094.0,58093.0,0.20199045]
[1725501851086,0.3608,58094.0,58093.0,0.20199045]
[1725501854694,0.0481,58102.0,58101.0,0.060236]
[1725501855993,0.0571,58102.0,58101.0,0.061236]
[1725501856897,0.0661,58102.0,58101.0,0.001]
[1725501857099,0.1961,58102.0,58101.0,0.001]
[1725501857397,0.0661,58102.0,58101.0,0.001]
[1725501857800,0.126335,58102.0,58101.0,0.001]
[1725501858497,0.487135,58102.0,58101.0,0.001]
[1725501861299,0.847935,58102.0,58101.0,0.001]
[1725501879608,0.060244,58094.0,58093.0,0.0002582]
[1725501879914,0.661044,58094.0,58093.0,0.0002582]
[1725501883909,0.3608,58094.0,58093.0,0.0002582]
[1725501884111,0.4708,58094.0,58093.0,0.0605032]
[1725501884301,0.3608,58094.0,58093.0,0.0605032]
[1725501884912,0.3608,58094.0,58093.0,0.1091032]
[1725501887015,0.11,58095.0,58094.0,0.060244]
[1725501887216,0.4708,58095.0,58094.0,0.060244]
[1725501888111,0.4718,58095.0,58094.0,0.060244]
[1725501888926,0.3618,58095.0,58094.0,0.060244]
[1725501889415,0.3628,58095.0,58094.0,0.060244]
[1725501894707,0.3628,58095.0,58094.0,0.170244]
[1725501897111,0.3628,58095.0,58094.0,0.060244]
[1725501898913,0.423043,58095.0,58094.0,0.060244]
[1725501902419,0.062243,58095.0,58094.0,0.060244]
[1725501902622,0.423043,58095.0,58094.0,0.060244]
[1725501904421,0.3628,58095.0,58094.0,0.060244]
[1725501906225,0.060244,58094.0,58093.0,0.0309258]
[1725501906525,0.060244,58094.0,58093.0,0.0002582]
[1725501906526,0.170244,58094.0,58093.0,0.0002582]
[1725501908525,0.290244,58094.0,58093.0,0.0002582]
[1725501908730,0.170244,58094.0,58093.0,0.0002582]
[1725501909229,0.230244,58094.0,58093.0,0.0002582]
[1725501910030,0.170244,58094.0,58093.0,0.0002582]
[1725501911529,0.060244,58094.0,58093.0,0.0002582]
[1725501911738,0.170244,58094.0,58093.0,0.0002582]
[1725501914227,0.11,58094.0,58093.0,0.0605032]
[1725501915530,0.3608,58095.0,58094.0,0.060244]
[1725501915927,0.6308,58095.0,58094.0,0.060244]
[1725501917036,0.6318,58095.0,58094.0,0.060244]
[1725501917837,0.6328,58095.0,58094.0,0.060244]
[1725501919639,0.3628,58095.0,58094.0,0.060244]
[1725501924840,0.002,58095.0,58094.0,0.060244]
[1725501925141,0.3628,58095.0,58094.0,0.060244]
[1725501932745,0.002,58095.0,58094.0,0.390488]
[1725501932946,0.002,58095.0,58094.0,1.506888]
[1725501933147,0.002,58095.0,58094.0,1.867688]
[1725501933452,0.004,58101.0,58100.0,0.060237]
[1725501933642,0.3608,58106.0,58100.0,0.27]
[1725501934560,0.3608,58106.0,58103.0,0.060234]
[1725501934852,0.3608,58106.0,58103.0,0.330234]
[1725501935251,0.3608,58106.0,58103.0,0.846554]
[1725501935550,0.0082582,58104.0,58103.0,0.846554]
[1725501936155,0.0082582,58104.0,58103.0,1.446554]
[1725501936347,0.004,58111.0,58110.0,0.330227]
[1725501936548,0.3648,58118.0,58110.0,0.27]
[1725501936737,0.3648,58118.0,58117.0,0.27]
[1725501936738,0.3608,58118.0,58117.0,0.27]
[1725501937141,0.3608,58118.0,58117.0,0.06022]
[1725501937653,0.3748,58118.0,58117.0,0.06022]
[1725501938245,0.3888,58118.0,58117.0,0.06122]
[1725501938738,0.3888,58118.0,58117.0,0.33122]
[1725501942045,0.3888,58118.0,58117.0,0.36281925]
[1725501942650,0.3888,58118.0,58117.0,0.09281925]
[1725501943841,0.449019,58118.0,58117.0,0.001]
[1725501944862,0.559019,58118.0,58117.0,0.001]
[1725501945751,0.4988,58118.0,58112.0,0.03074452]
[1725501945958,0.6308,58113.0,58112.0,0.0002582]
[1725501946645,0.7281,58113.0,58112.0,0.0002582]
[1725501947057,0.7421,58113.0,58112.0,0.0002582]
[1725501947643,0.7421,58113.0,58112.0,0.0012582]
[1725501948563,0.7421,58113.0,58112.0,0.0002582]
[1725501948750,0.7421,58113.0,58112.0,0.0012582]
[1725501948751,0.814324,58113.0,58112.0,0.0012582]
[1725501956249,0.861824,58113.0,58112.0,0.0012582]
[1725501961769,0.931824,58113.0,58112.0,0.0012582]
[1725501961969,0.771824,58113.0,58112.0,0.0012582]
[1725501962464,1.288064,58113.0,58102.0,0.004]
[1725501962669,0.3608,58103.0,58101.0,0.3252]
[1725501962965,0.2023,58102.0,58101.0,0.3252]
[1725501963464,0.2023,58102.0,58101.0,0.35673757]
[1725501963465,0.307935,58102.0,58101.0,0.35673757]
[1725501964059,0.467935,58102.0,58101.0,0.35673757]
[1725501964469,0.472935,58102.0,58101.0,0.35673757]
[1725501964863,0.478935,58102.0,58101.0,0.35673757]
[1725501965875,0.478935,58102.0,58101.0,0.03153757]
[1725501966069,0.478935,58102.0,58099.0,0.060238]
[1725501966868,0.480935,58102.0,58101.0,0.001]
[1725501967059,0.482935,58102.0,58101.0,0.001]
[1725501967462,0.475935,58102.0,58099.0,0.09107465]
[1725501967662,0.433535,58102.0,58100.0,0.060237]
[1725501968373,0.3773,58102.0,58101.0,0.061236]
[1725501968967,0.3693,58102.0,58101.0,0.061236]
[1725501969273,0.3763,58102.0,58101.0,0.061236]
[1725501969771,0.3763,58102.0,58101.0,0.001]
[1725501969772,0.436535,58102.0,58101.0,0.001]
[1725501969956,0.429535,58102.0,58099.0,0.03083665]
[1725501970161,0.435535,58102.0,58100.0,0.001]
[1725501970376,0.27,58101.0,58100.0,0.001]
[1725501970866,0.27,58101.0,58098.0,0.060239]
[1725501971073,0.27,58101.0,58096.0,0.0002582]
[1725501971272,0.691041,58097.0,58096.0,0.0312654]
[1725501971569,0.691041,58097.0,58096.0,0.0002582]
[1725501972372,0.6308,58097.0,58096.0,0.0002582]
[1725501972558,0.6328,58097.0,58096.0,0.0002582]
[1725501972758,0.6328,58097.0,58096.0,0.03135074]
[1725501973082,0.6328,58097.0,58096.0,0.0002582]
[1725501973575,0.6348,58097.0,58096.0,0.0002582]
[1725501974662,0.6348,58097.0,58096.0,0.03087005]
[1725501979266,0.695041,58097.0,58096.0,0.03087005]
[1725501980980,0.3648,58097.0,58096.0,0.08951205]
[1725501981188,0.3648,58097.0,58096.0,0.060242]
[1725501981678,0.004,58097.0,58096.0,0.057042]
[1725501984580,0.004,58097.0,58096.0,0.106442]
[1725501984981,0.004,58097.0,58096.0,0.201242]
[1725501986087,0.004,58097.0,58096.0,0.18192022]
[1725501987586,0.004,58097.0,58096.0,0.08742022]
[1725501994082,0.004,58097.0,58096.0,0.19742022]
[1725501996292,0.004,58097.0,58096.0,0.08742022]
[1725501997483,0.425041,58097.0,58096.0,0.03037822]
[1725501997696,0.425041,58097.0,58094.0,0.060243]
[1725501997896,0.11,58095.0,58094.0,0.060243]
[1725501998693,0.11,58095.0,58091.0,0.03199752]
[1725501998893,0.4708,58092.0,58091.0,0.03199752]
[1725501999887,0.3608,58092.0,58091.0,0.03199752]
[1725502000885,0.3608,58092.0,58091.0,0.03399752]
[1725502001284,0.421046,58092.0,58091.0,0.03399752]
[1725502001793,0.421046,58092.0,58091.0,0.03799752]
[1725502002785,1.557486,58092.0,58091.0,0.0062582]
[1725502002995,0.060253,58085.0,58084.0,0.004]
[1725502003200,0.060254,58084.0,58079.0,0.060259]
[1725502003399,0.3608,58080.0,58079.0,0.060259]
[1725502003898,0.109554,58084.0,58079.0,0.060259]
[1725502004093,0.3488,58080.0,58079.0,0.060259]
[1725502004783,0.001,58080.0,58079.0,0.062259]
[1725502004987,0.3628,58080.0,58079.0,0.10704607]
[1725502006504,0.6328,58080.0,58079.0,0.10704607]
[1725502008700,0.3628,58080.0,58079.0,0.10704607]
[1725502019502,0.6328,58080.0,58079.0,0.10704607]
[1725502019704,0.060263,58075.0,58074.0,0.0002582]
[1725502020006,0.060263,58075.0,58057.0,0.42839511]
[1725502020007,0.5408,58075.0,58060.0,0.0555]
[1725502020195,0.891878,58061.0,58060.0,0.0555]
[1725502020394,0.781878,58061.0,58060.0,0.0555]
[1725502020590,0.891878,58061.0,58060.0,0.0555]
[1725502021006,0.7216,58061.0,58060.0,0.0555]
[1725502021192,0.7216,58061.0,58060.0,0.115779]
[1725502021193,0.8316,58061.0,58060.0,0.115779]
[1725502021603,0.8356,58061.0,58060.0,0.0555]
[1725502022000,0.9956,58061.0,58060.0,0.0555]
[1725502022302,1.055878,58061.0,58060.0,0.0555]
[1725502023200,1.060878,58061.0,58060.0,0.0555]
[1725502024491,2.177598,58061.0,58060.0,0.0555]
[1725502024912,0.060283,58057.0,58055.0,0.0002582]
[1725502025208,0.6764,58056.0,58055.0,0.0002582]
[1725502027608,0.6804,58056.0,58055.0,0.0002582]
[1725502028001,0.6864,58056.0,58055.0,0.0002582]
[1725502032311,1.863443,58056.0,58055.0,0.0002582]
[1725502032516,0.060293,58047.0,58041.0,0.00147402]
[1725502032713,0.27,58043.0,58041.0,0.00147402]
[1725502032912,0.0463,58042.0,58041.0,0.00147402]
[1725502033410,0.0463,58042.0,58040.0,0.00188667]
[1725502033411,1.16318,58042.0,58040.0,0.00188667]
[1725502033619,0.937979,58041.0,58040.0,0.00188667]
[1725502034121,1.537979,58041.0,58040.0,0.00188667]
[1725502035003,1.543979,58041.0,58040.0,0.00188667]
[1725502036418,0.427099,58041.0,58040.0,0.00188667]
[1725502036714,0.434099,58041.0,58040.0,0.00188667]
[1725502041319,1.550979,58041.0,58040.0,0.00188667]
[1725502043404,1.660979,58041.0,58040.0,0.00188667]
[1725502044709,0.060307,58033.0,58030.0,0.0028053]
[1725502044910,0.69970796,58033.0,58023.0,0.04545041]
[1725502045210,0.6308,58030.0,58023.0,0.01415786]
[1725502045615,1.74776,58030.0,58023.0,0.01415786]
[1725502045809,1.80807,58030.0,58024.0,0.03471704]
[1725502046815,1.82107,58030.0,58024.0,0.03471704]
[1725502047124,1.83307,58030.0,58024.0,0.03471704]
[1725502047921,0.7158,58030.0,58024.0,0.03471704]
[1725502048223,0.060314,58026.0,58024.0,0.03471704]
[1725502048424,0.491114,58026.0,58024.0,0.03471704]
[1725502048614,1.608114,58026.0,58024.0,0.03471704]
[1725502049919,1.290114,58026.0,58024.0,0.03471704]
[1725502050419,1.901114,58026.0,58024.0,0.03471704]
[1725502052429,1.889114,58026.0,58024.0,0.03471704]
[1725502052620,1.903114,58026.0,58024.0,0.03471704]
[1725502053321,1.905114,58026.0,58024.0,0.03471704]
[1725502053828,1.906114,58026.0,58024.0,0.03471704]
[1725502054421,1.906114,58026.0,58025.0,0.00323837]
[1725502057230,1.906114,58026.0,58021.0,0.01719526]
[1725502057231,1.36010535,58026.0,58021.0,0.01719526]
[1725502057422,0.54,58019.0,58013.0,0.05292053]
[1725502057624,0.06033,58011.0,58010.0,0.00545858]
[1725502057932,0.6308,58011.0,58010.0,0.00545858]
[1725502058630,0.63005786,58011.0,58010.0,0.00545858]
[1725502059623,0.63305786,58011.0,58010.0,0.06578958]
[1725502059928,0.63305786,58011.0,58010.0,0.11358958]
[1725502060232,0.63505786,58011.0,58010.0,0.11358958]
[1725502061730,0.63505786,58011.0,58010.0,0.06578958]
[1725502062030,0.63505786,58011.0,58010.0,0.00545858]
[1725502062424,0.99585786,58011.0,58010.0,0.00545858]
[1725502066332,0.01954142,58010.0,58009.0,0.01154346]
[1725502067539,0.02154142,58010.0,58009.0,0.01154346]
[1725502067837,0.08287242,58010.0,58009.0,0.01154346]
[1725502069534,1.20003242,58010.0,58009.0,0.01154346]
[1725502069740,1.35943242,58010.0,58009.0,0.01154346]
[1725502070343,0.060336,58005.0,58003.0,0.00942572]
[1725502070638,0.060336,58005.0,57993.0,0.0153519]
[1725502070639,0.060339,58002.0,57993.0,0.0153519]
[1725502070838,0.691141,58000.0,57993.0,0.0153519]
[1725502071036,0.691144,57997.0,57993.0,0.0153519]
[1725502071338,0.801144,57997.0,57993.0,0.04071613]
[1725502071841,0.801144,57997.0,57993.0,0.0153519]
[1725502072241,0.861488,57997.0,57993.0,0.0153519]
[1725502072440,0.801144,57997.0,57993.0,0.0153519]
[1725502072644,0.761144,57997.0,57993.0,0.0153519]
[1725502073935,0.768144,57997.0,57993.0,0.0153519]
[1725502074245,0.768144,57997.0,57972.0,0.02386294]
[1725502074246,0.3608,57983.0,57972.0,0.02386294]
[1725502074536,0.06037,57972.0,57968.0,0.05496338]
[1725502074743,0.3608,57974.0,57968.0,0.05316655]
[1725502075040,0.6308,57969.0,57968.0,0.05316655]
[1725502075541,1.74832,57969.0,57968.0,0.01418685]
[1725502075734,1.74832,57969.0,57965.0,0.0070854]
[1725502075929,0.51752,57968.0,57965.0,0.0070854]
[1725502076136,0.69257401,57969.0,57965.0,0.0070854]
[1725502076347,0.6308,57969.0,57965.0,0.0070854]
[1725502077044,0.6318,57969.0,57965.0,0.0070854]
[1725502079039,0.577896,57968.0,57965.0,0.0070854]
[1725502079233,0.627096,57968.0,57965.0,0.0070854]
[1725502079433,0.51752,57967.0,57965.0,0.0070854]
[1725502079845,1.31373229,57967.0,57965.0,0.0070854]
[1725502080740,1.31373229,57967.0,57958.0,0.02448301]
[1725502080741,0.51756,57966.0,57958.0,0.02448301]
[1725502080942,0.51756,57966.0,57945.0,0.07178713]
[1725502080943,0.27271064,57947.0,57945.0,0.07178713]
[1725502081245,0.060406,57938.0,57936.0,0.01725079]
[1725502081542,0.81104133,57937.0,57936.0,0.01725079]
[1725502081734,1.32884133,57937.0,57936.0,0.01725079]
[1725502081932,1.92884133,57937.0,57936.0,0.01725079]
[1725502082137,2.00884133,57937.0,57936.0,7.9e-07]
[1725502082336,2.00884133,57937.0,57922.0,0.00645601]
[1725502082337,0.51784,57936.0,57922.0,0.00645601]
[1725502082647,0.9916,57926.0,57922.0,0.00645601]
[1725502083932,1.0626,57926.0,57922.0,0.00645601]
[1725502084350,0.7226,57926.0,57922.0,0.00645601]
[1725502084541,0.7306,57926.0,57925.0,0.00727838]
[1725502085548,0.7376,57926.0,57925.0,0.00727838]
[1725502087551,0.92989844,57926.0,57901.0,0.24468373]
[1725502087742,0.3608,57909.0,57901.0,0.56988373]
[1725502088048,0.3608,57909.0,57902.0,0.34]
[1725502088238,0.3608,57909.0,57901.0,0.24468373]
[1725502088239,0.3608,57909.0,57906.0,0.400439]
[1725502088644,0.3608,57909.0,57907.0,0.042438]
[1725502089048,0.3608,57909.0,57901.0,0.26988929]
[1725502089049,0.30030057,57909.0,57902.0,0.34]
[1725502089350,0.30030057,57909.0,57901.0,0.26988929]
[1725502089351,0.25708669,57909.0,57901.0,0.24468373]
[1725502089743,0.3608,57903.0,57896.0,0.00517034]
[1725502089943,0.3608,57903.0,57876.0,0.00092]
[1725502089944,0.060447,57899.0,57876.0,0.00092]
[1725502090241,0.7008,57877.0,57870.0,0.00913473]
[1725502090445,0.004,57882.0,57875.0,0.34]
[1725502090745,0.00025913,57879.0,57878.0,0.421269]
[1725502090938,0.004,57887.0,57885.0,0.060461]
[1725502091143,0.3608,57892.0,57885.0,0.060461]
[1725502091343,0.34,57891.0,57878.0,0.3608]
[1725502091847,0.3608,57892.0,57884.0,0.060462]
[1725502092152,0.00425913,57894.0,57888.0,0.3608]
[1725502092341,0.00025913,57894.0,57888.0,0.3608]
[1725502092538,0.00025913,57894.0,57889.0,0.060457]
[1725502092846,0.00025913,57894.0,57888.0,0.3608]
[1725502093044,0.00025913,57894.0,57890.0,0.34]
[1725502093444,0.004,57900.0,57893.0,0.3608]
[1725502093649,0.004,57903.0,57901.0,0.060444]